fUSD/lending_fUSD_20251103
["ID","MTS","AMOUNT","RATE_DAILY","PERIOD"]
[392964191,1762184024751,-272.961,0.00023751,2]
[392964192,1762184024760,-624.0,0.00023836,2]
[392964193,1762184024770,-779.0,0.00023836,2]
[392964194,1762184024779,-607.0,0.00023849,2]
[392964195,1762184024788,-573.0,0.00023849,2]
[392964196,1762184024798,-624.0,0.00023973,2]
[392964197,1762184024807,-779.0,0.00023973,2]
[392964198,1762184024817,-6453.0,0.00023979,2]
[392964199,1762184024827,-624.0,0.0002411,2]
[392964200,1762184024837,-779.0,0.0002411,2]
[392964201,1762184024847,-624.0,0.00024247,2]
[392964202,1762184024857,-779.0,0.00024247,2]
[392964203,1762184024867,-284.74,0.00024295,2]
[392964204,1762184024876,-624.0,0.00024384,2]
[392964205,1762184024886,-779.0,0.00024384,2]
[392964206,1762184024896,-624.0,0.00024521,2]
[392964207,1762184024906,-779.0,0.00024521,2]
[392964208,1762184024915,-1000.0,0.00024658,2]
[392964209,1762184024930,-624.0,0.00024658,2]
[392964210,1762184024940,-779.0,0.00024658,2]
[392964211,1762184024950,-837.8078,0.000247,2]
[392964212,1762184024960,-188.63621768,0.00024732,2]
[392964213,1762184024970,-624.0,0.00024795,2]
[392964214,1762184024980,-779.0,0.00024795,2]
[392964215,1762184024989,-300.0,0.00024799,10]
[392964216,1762184024998,-477.5520043,0.000248,3]
[392964217,1762184025008,-612156.473884,0.000248,3]
[392964218,1762184025019,-415.18629382,0.00024832,2]
[392964219,1762184025028,-151.0,0.00024887,7]
[392964220,1762184025038,-151.0,0.00024887,7]
[392964221,1762184025047,-151.0,0.00024897,7]
[392964222,1762184025056,-151.0,0.00024897,7]
[392964223,1762184025066,-300.0,0.00024899,10]
[392964224,1762184025076,-428530.33654057,0.000249,3]
[392964225,1762184025261,-4151.75,0.000249,3]
[392964226,1762184025274,-47424.90881414,0.000249,3]
[392964227,1762184025285,-25589.6911863,0.000249,3]
[392964228,1762184025297,-15854.88232617,0.000249,3]
[392964229,1762184025308,-372.29773485,0.000249,3]
[392964230,1762184025320,-5375.0,0.000249,3]
[392964231,1762184025332,-1062.18944802,0.000249,3]
[392964232,1762184025343,-30315.67666269,0.000249,3]
[392964233,1762184025354,-684.750015,0.000249,3]
[392964234,1762184025364,-1069.59500452,0.000249,3]
[392964235,1762184025376,-667.94382413,0.000249,3]
[392964236,1762184025387,-10336.61294765,0.000249,3]
[392964237,1762184112234,540.35,0.00014,2]
[392964238,1762184120034,-1609.204,0.000147,2]
[392964239,1762184120056,-255.74884549,0.000147,2]
[392964240,1762184120079,-736.4547,0.0001479,2]
[392964241,1762184120103,-335.0,0.00014849,2]
[392964242,1762184120124,-195.0,0.00014871,2]
[392964243,1762184120151,-250.0,0.00014871,2]
[392964244,1762184120176,-300.0,0.00014878,2]
[392964245,1762184120198,-300.0,0.00014878,2]
[392964246,1762184120221,-1200.0,0.00014878,2]
[392964247,1762184120243,-228.70561501,0.00014879,2]
[392964248,1762184120265,-373.71038264,0.00014879,2]
[392964249,1762184120288,-400.08313203,0.00014879,2]
[392964250,1762184120317,-500.0,0.00014879,2]
[392964251,1762184120338,-203.67668194,0.00014879,2]
[392964252,1762184120366,-500.0,0.00014879,2]
[392964253,1762184120392,-500.0,0.00014879,2]
[392964254,1762184120418,-500.0,0.00014879,2]
[392964255,1762184120446,-250.0,0.00014879,2]
[392964256,1762184120473,-500.0,0.00014879,2]
[392964257,1762184120504,-500.0,0.00014879,2]
[392964258,1762184120537,-500.0,0.00014879,2]
[392964259,1762184120565,-500.0,0.00014879,2]
[392964260,1762184120592,-500.0,0.00014879,2]
[392964261,1762184120617,-500.0,0.00014879,2]
[392964262,1762184120642,-500.0,0.00014879,2]
[392964263,1762184120666,-500.0,0.00014879,2]
[392964264,1762184120691,-500.0,0.00014879,2]
[392964265,1762184120716,-500.0,0.00014879,2]
[392964266,1762184120741,-500.0,0.00014879,2]
[392964267,1762184120766,-500.0,0.00014879,2]
[392964268,1762184120792,-500.0,0.00014879,2]
[392964269,1762184120818,-500.0,0.00014879,2]
[392964270,1762184120843,-500.0,0.00014879,2]
[392964271,1762184120869,-500.0,0.00014879,2]
[392964272,1762184120895,-500.0,0.00014879,2]
[392964273,1762184120921,-500.0,0.00014879,2]
[392964274,1762184120947,-536.91498916,0.00014879,2]
[392964275,1762184120972,-500.0,0.00014879,2]
[392964276,1762184120998,-500.0,0.00014879,2]
[392964277,1762184121024,-500.0,0.00014879,2]
[392964278,1762184121053,-32.50165373,0.00014879,2]
[392964294,1762184558832,11881.65621018,0.00027,120]
[392964295,1762184565691,12855.0,0.00027,120]
[392964296,1762184568361,562.37,0.00014111,2]
[392964297,1762184571753,150.0,0.00014111,2]
[392964299,1762184699292,200.0,0.00014063,2]
[392964302,1762184823727,6243.96,0.00014028,2]
[392964305,1762184849591,5104.91,0.00014032,2]
[392964306,1762184937090,150.0,0.00013922,2]
[392964379,1762184993459,150.0,0.00014119,2]
[392964380,1762184997448,206.86,0.00013922,2]
[392964382,1762185027442,170.76,0.0001113,2]
[392964383,1762185027828,170.76,0.00012243,2]
[392964384,1762185027892,170.76,0.00013356,2]
[392964429,1762185031527,-182.50894319,0.00014235,2]
[392964432,1762185031537,-610.0,0.00014235,2]
[392964435,1762185031551,-300.0,0.00014235,2]
[392964438,1762185031561,-230.52507633,0.00014235,2]
[392964441,1762185031571,-381.50864134,0.00014286,2]
[392964444,1762185031580,-1200.0,0.00014386,2]
[392964446,1762185031589,-65.85548633,0.00014386,2]
[392964460,1762185031654,-335.01682508,0.00014386,2]
[392964462,1762185031665,-799.12768859,0.00014386,2]
[392964464,1762185031675,-178.0,0.00014387,2]
[392964466,1762185031685,-81.73011141,0.00014387,2]
[392964476,1762185031778,-9292.58629039,0.00014387,2]
[392964478,1762185031794,-364.5,0.00014387,2]
[392964480,1762185031805,-3999.6735982,0.00014387,2]
[392964482,1762185031815,-170.76,0.00014468,2]
[392964484,1762185031825,-381.50864132,0.00014529,2]
[392964486,1762185031835,-404.91698157,0.000146,2]
[392964488,1762185031844,-381.50864132,0.00014772,2]
[392964490,1762185031854,-1000.0,0.0001478,2]
[392964492,1762185031863,-1991.35291999,0.0001478,2]
[392964495,1762185031879,-312.07198502,0.0001478,2]
[392964497,1762185031890,-196.57509499,0.0001478,2]
[392964499,1762185031900,-234.2205,0.0001478,2]
[392964501,1762185031910,-150.0,0.00014797,2]
[392964503,1762185031919,-162.3998843,0.00014797,2]
[392964505,1762185031929,-345.1756407,0.00014798,2]
[392964508,1762185031940,-1294.75782863,0.00014798,2]
[392964510,1762185031950,-163.42953469,0.00014798,2]
[392964512,1762185031959,-915.37967668,0.00014798,2]
[392964514,1762185031971,-3660.72236558,0.00014798,2]
[392964517,1762185031981,-500.0,0.0001487,2]
[392964519,1762185031990,-439.27763442,0.0001487,2]
[392964521,1762185032003,-60.72236558,0.0001487,2]
[392964524,1762185032012,-500.0,0.0001487,2]
[392964527,1762185032022,-500.0,0.0001487,2]
[392964530,1762185032032,-500.0,0.0001487,2]
[392964533,1762185032044,-500.0,0.0001487,2]
[392964536,1762185032056,-500.0,0.0001487,2]
[392964539,1762185032066,-500.0,0.0001487,2]
[392964542,1762185032078,-500.0,0.0001487,2]
[392964545,1762185032089,-500.0,0.0001487,2]
[392964548,1762185032099,-500.0,0.0001487,2]
[392964553,1762185032114,-500.0,0.0001487,2]
[392964556,1762185032123,-305.00583269,0.0001487,2]
[392964559,1762185032135,-194.99416731,0.0001487,2]
[392964562,1762185032146,-500.0,0.0001487,2]
[392964565,1762185032155,-500.0,0.0001487,2]
[392964568,1762185032165,-500.0,0.0001487,2]
[392964571,1762185032175,-575.38595087,0.0001487,2]
[392964573,1762185032184,-500.0,0.0001487,2]
[392964575,1762185032194,-500.0,0.0001487,2]
[392964577,1762185032203,-500.0,0.0001487,2]
[392964579,1762185032213,-500.0,0.0001487,2]
[392964581,1762185032223,-500.0,0.0001487,2]
[392964583,1762185032232,-500.0,0.0001487,2]
[392964585,1762185032242,-1.03085125,0.0001487,2]
[392964709,1762185038348,-498.96914875,0.0001487,2]
[392964710,1762185038358,-500.0,0.0001487,2]
[392964711,1762185038369,-500.0,0.0001487,2]
[392964712,1762185038378,-500.0,0.0001487,2]
[392964713,1762185038388,-500.0,0.0001487,2]
[392964714,1762185038397,-500.0,0.0001487,2]
[392964715,1762185038407,-203.62325125,0.0001487,2]
[392964716,1762185038541,-296.37674875,0.0001487,2]
[392964717,1762185038554,-500.0,0.0001487,2]
[392964718,1762185038565,-500.0,0.0001487,2]
[392964719,1762185038575,-500.0,0.0001487,2]
[392964720,1762185038584,-500.0,0.0001487,2]
[392964721,1762185038595,-500.0,0.0001487,2]
[392964722,1762185038606,-500.0,0.0001487,2]
[392964723,1762185038616,-500.0,0.0001487,2]
[392964724,1762185038626,-500.0,0.0001487,2]
[392964725,1762185038636,-500.0,0.0001487,2]
[392964726,1762185038646,-500.0,0.0001487,2]
[392964727,1762185038656,-500.0,0.0001487,2]
[392964728,1762185038666,-500.0,0.0001487,2]
[392964729,1762185038676,-550.0,0.0001487,2]
[392964730,1762185038687,-4571.39,0.0001487,2]
[392964731,1762185038698,-986.83061894,0.0001487,2]
[392964734,1762185038716,-3584.55938106,0.0001487,2]
[392964735,1762185038726,-374.15,0.00014872,2]
[392964736,1762185038736,-10121.28,0.00014872,2]
[392964737,1762185038746,-8920.01091894,0.00014872,2]
[392964738,1762185038757,-1079.97908106,0.00014872,2]
[392964739,1762185038767,-495.22991374,0.00014873,2]
[392964740,1762185038782,-153.46008724,0.00014873,2]
[392964741,1762185038793,-500.0,0.00014873,2]
[392964742,1762185038808,-408.33492072,0.00014873,2]
[392964744,1762185038819,-500.0,0.00014873,2]
[392964746,1762185038831,-500.0,0.00014873,2]
[392964747,1762185038842,-500.0,0.00014873,2]
[392964748,1762185038852,-500.0,0.00014873,2]
[392964749,1762185038862,-164.03076053,0.00014873,2]
[392964750,1762185038873,-500.0,0.00014873,2]
[392964751,1762185038883,-500.0,0.00014873,2]
[392964752,1762185038893,-500.0,0.00014873,2]
[392964753,1762185038903,-500.0,0.00014873,2]
[392964754,1762185038925,-500.0,0.00014873,2]
[392964755,1762185038937,-500.0,0.00014873,2]
[392964756,1762185038947,-500.0,0.00014873,2]
[392964757,1762185038958,-500.0,0.00014879,2]
[392964758,1762185038968,-500.0,0.00014879,2]
[392964759,1762185038979,-500.0,0.00014879,2]
[392964760,1762185038989,-500.0,0.00014879,2]
[392964761,1762185038998,-500.0,0.00014879,2]
[392964762,1762185039008,-500.0,0.00014879,2]
[392964763,1762185039018,-500.0,0.00014879,2]
[392964764,1762185039028,-531.91586587,0.00014879,2]
[392964765,1762185039039,-500.0,0.00014879,2]
[392964766,1762185039054,-429.79976124,0.00014879,2]
[392964767,1762185039065,-420000.0,0.0001488,2]
[392964768,1762185039076,-596.7527,0.00014897,2]
[392964769,1762185039087,-164.85296633,0.00014898,2]
[392964770,1762185039100,-169.85165308,0.00014898,2]
[392964771,1762185039110,-4597.13613983,0.000149,2]
[392964772,1762185039121,-409.99107436,0.000149,2]
[392964773,1762185039132,-7155.8704,0.000149,2]
[392964774,1762185039142,-500.0,0.00014973,2]
[392964775,1762185039152,-500.0,0.00014973,2]
[392964776,1762185039162,-500.0,0.00014973,2]
[392964778,1762185039173,-500.0,0.00014973,2]
[392964779,1762185039183,-629.1,0.00014973,2]
[392964781,1762185039194,-524.10146729,0.00014979,2]
[392964783,1762185039204,-500.0,0.00014979,2]
[392964785,1762185039215,-500.0,0.00014979,2]
[392964787,1762185039225,-462.45950045,0.00014979,2]
[392964789,1762185039235,-500.0,0.00014979,2]
[392964791,1762185039244,-500.0,0.00014979,2]
[392964793,1762185039255,-536.55386986,0.00014979,2]
[392964795,1762185039264,-500.0,0.00014988,2]
[392964797,1762185039273,-200.0,0.00014988,2]
[392964799,1762185039282,-500.0,0.00014988,2]
[392964801,1762185039292,-500.0,0.00014988,2]
[392964803,1762185039306,-500.0,0.00014988,2]
[392964805,1762185039317,-500.0,0.00014988,2]
[392964807,1762185039327,-151.0,0.00014988,2]
[392964809,1762185039337,-151.0,0.00014988,2]
[392964811,1762185039347,-151.0,0.00014988,2]
[392964812,1762185039357,-151.0,0.00014988,2]
[392964813,1762185039367,-151.0,0.00014988,2]
[392964815,1762185039377,-151.0,0.00014988,2]
[392964816,1762185039386,-151.0,0.00014988,2]
[392964818,1762185039395,-151.0,0.00014988,2]
[392964819,1762185039404,-151.0,0.00014988,2]
[392964820,1762185039414,-151.0,0.00014988,2]
[392964821,1762185039424,-151.0,0.00014988,2]
[392964822,1762185039434,-151.0,0.00014988,2]
[392964823,1762185039443,-200.0,0.00014988,2]
[392964825,1762185039453,-151.0,0.00014988,2]
[392964827,1762185039462,-151.0,0.00014988,2]
[392964829,1762185039472,-151.0,0.00014988,2]
[392964856,1762185039857,-151.0,0.00014988,2]
[392964857,1762185039867,-151.0,0.00014988,2]
[392964858,1762185039877,-151.0,0.00014988,2]
[392964859,1762185039887,-151.0,0.00014988,2]
[392964860,1762185039897,-151.0,0.00014988,2]
[392964861,1762185039906,-151.0,0.00014988,2]
[392964862,1762185039916,-151.0,0.00014988,2]
[392964863,1762185039925,-151.0,0.00014988,2]
[392964864,1762185039935,-151.0,0.00014988,2]
[392964865,1762185039944,-151.0,0.00014988,2]
[392964866,1762185039955,-151.0,0.00014988,2]
[392964867,1762185039964,-151.0,0.00014988,2]
[392964868,1762185039973,-151.0,0.00014988,2]
[392964869,1762185039982,-151.0,0.00014988,2]
[392964870,1762185039991,-151.0,0.00014988,2]
[392964871,1762185040000,-151.0,0.00014988,2]
[392964872,1762185040010,-151.0,0.00014988,2]
[392964873,1762185040020,-151.0,0.00014988,2]
[392964874,1762185040029,-151.0,0.00014988,2]
[392964875,1762185040039,-151.0,0.00014988,2]
[392964876,1762185040052,-151.0,0.00014988,2]
[392964877,1762185040062,-151.0,0.00014988,2]
[392964878,1762185040072,-151.0,0.00014988,2]
[392964879,1762185040082,-151.0,0.00014988,2]
[392964880,1762185040092,-151.0,0.00014988,2]
[392964881,1762185040101,-151.0,0.00014988,2]
[392964882,1762185040110,-151.0,0.00014988,2]
[392964883,1762185040120,-151.0,0.00014988,2]
[392964884,1762185040129,-151.0,0.00014988,2]
[392964885,1762185040138,-151.0,0.00014988,2]
[392964886,1762185040148,-151.0,0.00014988,2]
[392964887,1762185040157,-151.0,0.00014988,2]
[392964888,1762185040167,-151.0,0.00014988,2]
[392964889,1762185040176,-151.0,0.00014988,2]
[392964890,1762185040186,-151.0,0.00014988,2]
[392964891,1762185040195,-151.0,0.00014988,2]
[392964892,1762185040204,-151.0,0.00014988,2]
[392964893,1762185040214,-151.0,0.00014988,2]
[392964894,1762185040223,-151.0,0.00014988,2]
[392964895,1762185040232,-200.0,0.00014988,2]
[392964896,1762185040242,-237.50545482,0.00014989,2]
[392964897,1762185040252,-500.0,0.00014996,2]
[392964898,1762185040262,-519.42,0.00014996,2]
[392964899,1762185040271,-500.0,0.00014996,2]
[392964900,1762185040281,-501.24555517,0.00014996,2]
[392964901,1762185040290,-500.0,0.00014996,2]
[392964902,1762185040303,-500.0,0.00014996,2]
[392964903,1762185040313,-500.0,0.00014996,2]
[392964904,1762185040323,-500.0,0.00014996,2]
[392964905,1762185040333,-533789.74012014,0.00014997,2]
[392964906,1762185040343,-500.0,0.00014998,2]
[392964907,1762185040353,-500.0,0.00014998,2]
[392964908,1762185040362,-4448.62288212,0.00014999,2]
[392964909,1762185040372,-2899.154195,0.00014999,2]
[392964910,1762185040382,-164584.5680451,0.00014999,2]
[392964911,1762185040391,-500.0,0.00014999,2]
[392964912,1762185040400,-500.0,0.00014999,2]
[392964913,1762185040409,-500.0,0.00014999,2]
[392964914,1762185040418,-500.0,0.00014999,2]
[392964915,1762185040427,-239.11809844,0.00014999,2]
[392964916,1762185040436,-3462.75,0.0001506,2]
[392964917,1762185040445,-10804.58,0.00015092,2]
[392964918,1762185040455,-629.1,0.00015247,2]
[392964919,1762185040464,-783.48315436,0.00015421,2]
[392964920,1762185040474,-309.91152023,0.00015421,2]
[392964921,1762185040484,-500.0,0.00015421,2]
[392964922,1762185040493,-500.0,0.00015421,2]
[392964923,1762185040502,-1000.0,0.00015521,2]
[392964924,1762185040511,-629.1,0.00015521,2]
[392964925,1762185040521,-500.0,0.00015536,2]
[392964926,1762185040533,-200.0,0.00015536,2]
[392964927,1762185040543,-200.0,0.00015536,2]
[392964928,1762185040561,-724.03149808,0.00015563,2]
[392964929,1762185040571,-170.76,0.00015581,2]
[392964930,1762185040581,-168.0,0.0001562,2]
[392964931,1762185040591,-300.0,0.00015658,2]
[392964932,1762185040600,-250.0,0.00015658,2]
[392964933,1762185040609,-181.18711399,0.00015658,2]
[392964934,1762185040619,-195.0,0.00015658,2]
[392964935,1762185040628,-195.0,0.00015658,2]
[392964936,1762185040638,-250.0,0.00015658,2]
[392964937,1762185040647,-300.0,0.00015658,2]
[392964938,1762185040657,-250.0,0.00015658,2]
[392964939,1762185040667,-300.0,0.00015658,2]
[392964940,1762185040676,-326.41,0.00015665,2]
[392964941,1762185040685,-304.38,0.00015666,2]
[392964942,1762185040696,-168.0,0.00015744,2]
[392964943,1762185040710,-629.1,0.00015795,2]
[392964944,1762185040720,-304.38,0.00015803,2]
[392964945,1762185040730,-1680.0,0.00015825,2]
[392964946,1762185040740,-169.85165307,0.00015899,2]
[392964947,1762185040750,-255.0,0.00015922,2]
[392964948,1762185040759,-304.38,0.0001594,2]
[392964949,1762185040769,-168.0,0.00016033,2]
[392964950,1762185040780,-629.1,0.00016068,2]
[392964951,1762185040789,-1500.0,0.00016068,2]
[392964952,1762185040804,-304.4,0.00016077,2]
[392964953,1762185040814,-168.0,0.00016249,2]
[392964954,1762185040824,-587.2229139,0.00016264,2]
[392964955,1762185040834,-629.12674324,0.00016342,2]
[392964956,1762185040843,-1129.63713841,0.00016616,2]
[392964957,1762185040853,-1639.93346924,0.00016643,2]
[392964958,1762185040862,-4576.10204217,0.00016643,2]
[392964959,1762185040871,-170.76,0.00016694,2]
[392964960,1762185040881,-165.57,0.00016712,2]
[392964961,1762185040890,-168.0,0.00016874,2]
[392964962,1762185040899,-168.0,0.00016895,2]
[392964963,1762185040908,-169.85165307,0.000169,2]
[392964964,1762185040919,-500.0,0.00016973,2]
[392964965,1762185040928,-505.37805286,0.00016973,2]
[392964966,1762185040937,-151.0,0.00016983,2]
[392964967,1762185040946,-500.0,0.00016986,2]
[392964968,1762185040956,-500.0,0.00016986,2]
[392964969,1762185040965,-264880.34,0.00016986,2]
[392964970,1762185040974,-250.0,0.00017,2]
[392964971,1762185040983,-168.0,0.00017006,2]
[392964972,1762185040992,-168.0,0.00017124,2]
[392964973,1762185041001,-195.0,0.00017135,2]
[392964974,1762185041011,-163.42953466,0.00017171,2]
[392964975,1762185041021,-2351.0,0.00017408,2]
[392964976,1762185041030,-477.5520043,0.00017505,2]
[392964977,1762185041039,-1000.0,0.00017521,2]
[392964978,1762185041053,-409.99107432,0.00017653,2]
[392964979,1762185041062,-168.0,0.00017721,2]
[392964980,1762185041072,-210.19144222,0.00017727,2]
[392964981,1762185041081,-10014.68,0.00017823,2]
[392964982,1762185041091,-1852.42,0.00018066,2]
[392964983,1762185041100,-322.72114457,0.00018068,2]
[392964984,1762185041109,-198.62,0.00018075,2]
[392964985,1762185041118,-1000.0,0.00018082,2]
[392964986,1762185041128,-19254.87,0.00018356,2]
[392964987,1762185041138,-36723.7810258,0.00018411,2]
[392964988,1762185041147,-1639.93346924,0.00018489,2]
[392964989,1762185041157,-4576.10204217,0.00018489,2]
[392964990,1762185041166,-1000.0,0.0001876,2]
[392964991,1762185041176,-300.0,0.00019,2]
[392964992,1762185041185,-644.71142354,0.00019,2]
[392964993,1762185041195,-3292.0,0.00019148,2]
[392964994,1762185041205,-8194.1831415,0.00019172,2]
[392964995,1762185041215,-500.0,0.00019178,2]
[392964996,1762185041224,-500.0,0.00019178,2]
[392964997,1762185041233,-1000.0,0.00019438,2]
[392964998,1762185041243,-163.42953466,0.00019543,2]
[392964999,1762185041252,-1000.0,0.00020116,2]
[392965000,1762185041262,-1639.93346924,0.00020334,2]
[392965001,1762185041272,-4576.10204217,0.00020334,2]
[392965002,1762185041283,-409.99107432,0.00020406,2]
[392965003,1762185041293,-1000.0,0.00020795,2]
[392965004,1762185041307,-350.0,0.00021,2]
[392965005,1762185041316,-4609.0,0.00021063,2]
[392965006,1762185041326,-3691.58,0.00021757,2]
[392965007,1762185041336,-1310.43,0.00021757,2]
[392965008,1762185041345,-9999.99,0.00021757,2]
[392965009,1762185041355,-1670.88,0.00021757,2]
[392965010,1762185041364,-7466.74,0.00021757,2]
[392965011,1762185041374,-9999.99,0.00021757,2]
[392965012,1762185041384,-3421.0,0.00021834,2]
[392965013,1762185041393,-1314.0,0.00021834,2]
[392965014,1762185041402,-1272.0,0.00021834,2]
[392965015,1762185041411,-819.0,0.00021834,2]
[392965016,1762185041420,-2126.0,0.00021834,2]
[392965017,1762185041430,-6652.0,0.00021834,2]
[392965018,1762185041439,-462.313,0.00021834,2]
[392965019,1762185041449,-163.42953466,0.00021916,2]
[392965020,1762185041458,-508.29032832,0.00021917,2]
[392965021,1762185041467,-500.0,0.00021917,2]
[392965022,1762185041477,-5000.0,0.00021918,2]
[392965023,1762185041487,-500.0,0.00021918,4]
[392965024,1762185041496,-500.0,0.00021918,4]
[392965025,1762185041506,-500.0,0.00021918,4]
[392965026,1762185041515,-500.0,0.00021918,4]
[392965027,1762185041526,-500.0,0.00021918,4]
[392965028,1762185041540,-500.0,0.00021918,4]
[392965029,1762185041554,-500.0,0.00021918,4]
[392965030,1762185041564,-500.0,0.00021918,4]
[392965031,1762185041574,-500.0,0.00021918,4]
[392965032,1762185041584,-500.0,0.00021918,4]
[392965033,1762185041594,-500.0,0.00021918,4]
[392965034,1762185041603,-500.0,0.00021918,4]
[392965035,1762185041613,-500.0,0.00021918,4]
[392965036,1762185041623,-500.0,0.00021918,4]
[392965037,1762185041633,-500.0,0.00021918,4]
[392965038,1762185041643,-500.0,0.00021918,4]
[392965039,1762185041652,-524.81595942,0.00021989,2]
[392965040,1762185041661,-3374.36358304,0.00021989,2]
[392965041,1762185041671,-194.94137108,0.00021989,2]
[392965042,1762185041680,-250.0,0.00021989,2]
[392965043,1762185041689,-250.0,0.00021989,2]
[392965044,1762185041702,-250.0,0.00021989,2]
[392965045,1762185041711,-250.0,0.00021989,2]
[392965046,1762185041720,-250.0,0.00021989,2]
[392965047,1762185041730,-248.71531821,0.00021989,2]
[392965048,1762185041740,-250.0,0.00021989,2]
[392965049,1762185041749,-250.0,0.00021989,2]
[392965050,1762185041758,-250.0,0.00021989,2]
[392965051,1762185041767,-250.0,0.00021989,2]
[392965052,1762185041777,-250.0,0.00021989,2]
[392965053,1762185041786,-500.0,0.00021989,2]
[392965054,1762185041800,-250.0,0.00021989,2]
[392965055,1762185041809,-250.0,0.00021989,2]
[392965056,1762185041818,-250.0,0.00021989,2]
[392965057,1762185041828,-500.0,0.00021989,2]
[392965058,1762185041836,-250.0,0.00021989,2]
[392965059,1762185041846,-500.0,0.00021989,2]
[392965060,1762185041856,-250.0,0.00021989,2]
[392965061,1762185041866,-500.0,0.00021989,2]
[392965062,1762185041875,-500.0,0.00021989,2]
[392965063,1762185041884,-250.0,0.00021989,2]
[392965064,1762185041893,-500.0,0.00021989,2]
[392965065,1762185041902,-250.0,0.00021989,2]
[392965066,1762185041911,-500.0,0.00021989,2]
[392965067,1762185041921,-250.0,0.00021989,2]
[392965068,1762185041930,-614.78515512,0.00021989,2]
[392965069,1762185041939,-281.79238422,0.00021989,2]
[392965070,1762185041949,-417.3869133,0.00021989,2]
[392965071,1762185041958,-620.0,0.00021989,2]
[392965072,1762185041968,-1000.0,0.00022157,7]
[392965073,1762185041978,-1639.93346924,0.0002218,2]
[392965074,1762185041987,-4576.10204217,0.0002218,2]
[392965075,1762185041996,-150.15994699,0.00022315,4]
[392965076,1762185042005,-150.0,0.00022315,4]
[392965077,1762185042014,-150.0,0.00022315,4]
[392965078,1762185042024,-150.0,0.00022315,4]
[392965079,1762185042033,-150.0,0.00022315,4]
[392965080,1762185042042,-150.0,0.00022315,4]
[392965081,1762185042055,-150.0,0.00022315,4]
[392965082,1762185042065,-150.0,0.00022315,4]
[392965083,1762185042075,-150.0,0.00022315,4]
[392965084,1762185042084,-150.0,0.00022315,4]
[392965085,1762185042094,-150.0,0.00022315,4]
[392965086,1762185042104,-150.0,0.00022315,4]
[392965087,1762185042114,-150.0,0.00022315,4]
[392965088,1762185042123,-150.0,0.00022315,4]
[392965089,1762185042133,-150.0,0.00022315,4]
[392965090,1762185042142,-150.0,0.00022315,4]
[392965091,1762185042151,-163.89453344,0.00022315,4]
[392965092,1762185042161,-150.0,0.00022315,4]
[392965093,1762185042170,-150.0,0.00022371,4]
[392965094,1762185042180,-150.0,0.00022401,4]
[392965095,1762185042190,-150.0,0.0002241,4]
[392965096,1762185042199,-150.0,0.00022418,4]
[392965097,1762185042208,-150.0,0.00022428,4]
[392965098,1762185042217,-150.0,0.00022428,4]
[392965099,1762185042226,-150.0,0.00022439,4]
[392965100,1762185042236,-150.0,0.00022461,4]
[392965101,1762185042245,-150.0,0.00022484,4]
[392965102,1762185042254,-150.0,0.00022486,4]
[392965103,1762185042265,-150.0,0.00022506,4]